bitfinex-derivatives/quotes_ETHF0:USTF0_20210110
["timestamp","ask_amount","ask_price","bid_price","bid_amount"]
[1610303675914,21.64538835,1289.4,1289.2,10.0]
[1610303676112,21.64538835,1289.4,1289.3,10.0]
[1610303676314,19.08065916,1289.4,1289.3,10.0]
[1610303676513,19.07905214,1289.5,1288.7,10.0]
[1610303676711,4.00959,1289.3,1289.0,4.00959]
[1610303677514,2.76942356,1289.2,1289.0,4.00959]
[1610303677713,4.86222356,1289.2,1289.1,10.0]
[1610303677913,23.92673809,1289.2,1289.0,4.00959]
[1610303678312,23.92673809,1289.2,1289.1,10.0]
[1610303678512,4.86222356,1289.2,1289.1,10.0]
[1610303678914,2.76942356,1289.2,1289.1,10.0]
[1610303680120,2.76942356,1289.2,1289.1,12.195]
[1610303680518,2.52136273,1289.9,1289.1,12.195]
[1610303680717,2.52136273,1289.9,1289.8,4.00959]
[1610303681319,19.56044398,1290.8,1289.8,14.00959]
[1610303681716,5.338,1290.9,1289.9,10.0]
[1610303682120,2.52063404,1290.5,1290.0,10.0]
[1610303682318,2.52063404,1290.5,1289.9,10.0]
[1610303682718,4.00959,1290.4,1290.3,4.00959]
[1610303683517,6.71581119,1290.4,1289.7,2.2376]
[1610303683721,6.71581119,1290.4,1290.3,10.0]
[1610303683918,6.71581119,1290.4,1290.0,10.0]
[1610303684519,6.71581119,1290.4,1290.1,10.0]
[1610303684919,5.92769,1290.6,1290.3,4.00959]
[1610303685519,5.92769,1290.6,1290.4,10.0]
[1610303685520,1.9181,1290.6,1290.4,10.0]
[1610303685721,1.9181,1290.6,1290.5,10.0]
[1610303686520,1.9181,1290.6,1290.4,10.0]
[1610303686921,4.00959,1290.5,1289.1,2.195]
[1610303687222,4.00959,1290.5,1290.4,10.0]
[1610303687622,4.00959,1290.5,1289.2,10.0]
[1610303687822,6.71567439,1290.5,1288.9,10.0]
[1610303688222,6.71567439,1290.5,1289.3,10.0]
[1610303688422,2.70608439,1290.5,1289.3,10.0]
[1610303688626,2.70608439,1290.5,1288.9,10.0]
[1610303688824,2.70608439,1290.5,1290.4,4.00959]
[1610303689424,2.70608439,1290.5,1290.4,14.00959]
[1610303690026,4.00959,1291.0,1290.4,14.00959]
[1610303690226,4.00959,1291.0,1290.5,10.0]
[1610303690427,5.53669,1291.0,1290.5,10.0]
[1610303690625,4.00959,1291.0,1290.6,10.0]
[1610303690826,4.00959,1290.8,1290.7,4.00959]
[1610303691025,5.53739,1290.8,1290.7,4.00959]
[1610303691226,7.35229,1290.8,1290.7,4.00959]
[1610303691426,1.8149,1290.8,1290.7,14.00959]
[1610303691826,4.65461926,1290.8,1290.7,14.00959]
[1610303693728,6.21791926,1290.8,1290.7,10.0]
[1610303693929,4.65461926,1290.8,1290.7,10.0]
[1610303694827,8.66420926,1290.8,1290.7,10.0]
[1610303695028,10.23450926,1290.8,1290.7,10.0]
[1610303695228,8.66420926,1290.8,1290.7,10.0]
[1610303695431,5.82449,1290.8,1290.7,10.0]
[1610303695628,1.8149,1290.8,1290.7,10.0]
[1610303695829,4.65493863,1290.8,1290.7,10.0]
[1610303696228,6.18403863,1290.8,1290.7,10.0]
[1610303696629,4.65493863,1290.8,1290.7,10.0]
[1610303696831,8.66452863,1290.8,1290.7,2.1839]
[1610303697029,8.66452863,1290.8,1290.1,4.00959]
[1610303697231,8.66452863,1290.8,1289.9,50.87]
[1610303697433,8.66452863,1290.8,1290.2,10.0]
[1610303697832,8.66452863,1290.8,1290.0,10.0]
[1610303698033,10.22792863,1290.8,1290.1,10.0]
[1610303698433,6.21833863,1290.8,1290.0,10.0]
[1610303698735,6.21833863,1290.8,1290.2,10.0]
[1610303698932,2.84010617,1290.7,1290.2,10.0]
[1610303699334,2.84010617,1290.7,1290.3,10.0]
[1610303699534,2.84010617,1290.7,1290.0,10.0]
[1610303699934,2.84010617,1290.7,1289.9,50.87]
[1610303700137,2.84010617,1290.7,1290.1,10.0]
[1610303700334,2.84010617,1290.7,1290.0,10.0]
[1610303700534,4.37680617,1290.7,1290.0,10.0]
[1610303700736,4.37680617,1290.7,1290.2,10.0]
[1610303700934,4.00959,1290.3,1290.2,10.0]
[1610303701142,4.00959,1290.3,1290.0,4.00959]
[1610303701337,6.10869,1290.3,1290.0,4.00959]
[1610303701738,6.10869,1290.3,1290.1,10.0]
[1610303702140,7.67999,1290.3,1290.1,10.0]
[1610303702339,6.10869,1290.3,1290.2,10.0]
[1610303702741,6.10869,1290.3,1290.1,10.0]
[1610303703140,2.84014033,1290.2,1290.0,4.00959]
[1610303703342,4.38914033,1290.2,1290.0,4.00959]
[1610303703540,4.38914033,1290.2,1290.1,10.0]
[1610303704140,2.84014033,1290.2,1290.1,10.0]
[1610303705440,4.39764033,1290.2,1290.1,10.0]
[1610303705639,2.84014033,1290.2,1290.1,9.4965]
[1610303706242,2.84014033,1290.2,1290.1,9.1554]
[1610303706942,6.84973033,1290.2,1290.1,2.6097]
[1610303707142,6.84973033,1290.2,1289.3,53.5598]
[1610303707744,6.84973033,1290.2,1289.4,10.0]
[1610303708143,6.84973033,1290.2,1289.5,10.0]
[1610303708343,6.84973033,1290.2,1289.4,10.0]
[1610303708745,8.41463033,1290.2,1289.3,53.5598]
[1610303708942,8.41463033,1290.2,1289.5,10.0]
[1610303709143,2.84133343,1290.1,1289.4,10.0]
[1610303709344,2.84133343,1290.1,1289.3,53.5598]
[1610303709543,2.84133343,1290.1,1289.4,10.0]
[1610303709943,2.84133343,1290.1,1289.5,10.0]
[1610303710343,2.84133343,1290.1,1289.4,10.0]
[1610303710542,2.84133343,1290.1,1288.3,4.00959]
[1610303710743,2.84133343,1290.1,1288.4,10.0]
[1610303710944,2.84133343,1290.1,1289.5,10.0]
[1610303711345,2.84133343,1290.1,1288.5,10.0]
[1610303711946,1.5444,1290.1,1288.4,10.0]
[1610303712345,1.5444,1290.1,1288.2,10.0]
[1610303712745,1.5444,1290.1,1288.5,10.0]
[1610303712946,1.5444,1290.1,1288.2,10.0]
[1610303713146,4.00959,1288.6,1288.2,10.0]
[1610303713348,6.41149,1288.6,1288.1,44.6934]
[1610303713749,6.41149,1288.6,1288.2,10.0]
[1610303713948,2.4019,1288.6,1288.2,10.0]
[1610303714147,2.4019,1288.6,1288.3,10.0]
[1610303714548,2.4019,1288.6,1288.2,10.0]
[1610303714749,2.84683298,1288.5,1288.1,44.6934]
[1610303714949,2.84683298,1288.5,1288.3,10.0]
[1610303715148,2.84683298,1288.5,1288.4,4.00959]
[1610303715652,2.84683298,1288.5,1288.4,14.00959]
[1610303717550,2.2371,1288.9,1288.4,14.00959]
[1610303717551,3.70926639,1288.8,1288.4,14.00959]
[1610303717950,3.70926639,1288.8,1288.5,10.0]
[1610303719049,4.00959,1288.6,1288.5,10.0]
[1610303719250,4.00959,1288.6,1288.2,10.0]
[1610303719450,5.70409,1288.6,1288.2,10.0]
[1610303719650,5.70409,1288.6,1288.3,10.0]
[1610303720050,5.70409,1288.6,1287.8,10.0]
[1610303720250,3.7999271,1288.5,1288.4,10.0]
[1610303720652,3.7999271,1288.5,1287.8,10.0]
[1610303720952,3.7999271,1288.5,1288.4,10.0]
[1610303721355,3.7999271,1288.5,1287.8,10.0]
[1610303721554,3.7999271,1288.5,1287.4,10.0]
[1610303721953,3.7999271,1288.5,1287.9,10.0]
[1610303722155,3.7999271,1288.5,1287.1,48.0613]
[1610303722354,3.7999271,1288.5,1288.0,10.0]
[1610303722754,3.7999271,1288.5,1287.4,10.0]
[1610303722954,3.7999271,1288.5,1287.1,48.0613]
[1610303723154,4.00959,1287.2,1287.1,48.0613]
[1610303723553,4.00959,1287.2,1287.1,58.0613]
[1610303724555,8.91791624,1287.2,1287.1,58.0613]
[1610303728866,8.91791624,1287.2,1287.1,10.0]
[1610303733070,4.90832624,1287.2,1287.1,14.00959]
[1610303733270,4.90832624,1287.2,1287.1,16.22349]
[1610303734273,4.90796601,1287.6,1287.1,16.22349]
[1610303734771,4.90796601,1287.6,1287.2,10.0]
[1610303734971,4.90796601,1287.6,1287.1,36.22349]
[1610303735171,62.259,1288.2,1287.5,4.00959]
[1610303735371,62.259,1288.2,1287.5,5.99349]
[1610303735570,62.259,1288.2,1287.5,35.99349]
[1610303735771,62.259,1288.2,1287.6,10.0]
[1610303735971,62.259,1288.2,1287.6,40.0]
[1610303736172,62.259,1288.2,1287.7,10.0]
[1610303736372,62.259,1288.2,1287.7,30.0]
[1610303736773,62.259,1288.2,1287.8,10.0]
[1610303736972,62.259,1288.2,1287.8,12.0798]
[1610303737172,62.259,1288.2,1288.1,6.43259]
[1610303737572,62.259,1288.2,1288.1,16.43259]
[1610303738272,62.259,1288.2,1288.1,46.43259]
[1610303738473,58.9646,1290.6,1288.1,46.43259]
[1610303738874,58.9646,1290.6,1288.2,10.0]
[1610303739074,62.97419,1290.6,1290.3,4.00959]
[1610303739276,62.97419,1290.6,1288.3,40.0]
[1610303739475,62.97419,1290.6,1289.8,1.9765]
[1610303740077,3.58277851,1290.5,1289.9,10.0]
[1610303740476,3.58277851,1290.5,1290.0,10.0]
[1610303740876,3.58277851,1290.5,1289.9,10.0]
[1610303741078,3.58277851,1290.5,1290.3,4.00959]
[1610303741880,3.58277851,1290.5,1290.4,10.0]
[1610303742278,3.58277851,1290.5,1290.2,10.0]
[1610303742478,3.58277851,1290.5,1289.8,1.9765]
[1610303742679,3.58277851,1290.5,1289.9,10.0]
[1610303743080,3.58277851,1290.5,1290.4,4.00959]
[1610303743479,3.58277851,1290.5,1289.9,10.0]
[1610303743680,3.58277851,1290.5,1290.4,10.0]
[1610303744081,3.58277851,1290.5,1289.9,10.0]
[1610303744481,3.58277851,1290.5,1290.0,10.0]
[1610303744679,3.58277851,1290.5,1289.9,10.0]
[1610303745081,3.58277851,1290.5,1290.1,10.0]
[1610303745279,4.00959,1290.4,1290.3,4.00959]
[1610303745881,4.00959,1290.4,1290.3,14.00959]
[1610303746683,3.58256046,1290.4,1290.3,14.00959]
[1610303748184,3.58215074,1290.5,1290.3,10.0]
[1610303748584,3.58215074,1290.5,1290.4,10.0]
[1610303748784,3.58215074,1290.5,1289.8,2.0461]
[1610303748984,3.58215074,1290.5,1290.4,10.0]
[1610303749185,7.59174074,1290.5,1290.4,10.0]
[1610303749385,4.00959,1290.5,1289.9,10.0]
[1610303749790,4.00959,1290.5,1290.4,10.0]
[1610303749989,4.00959,1290.5,1289.8,2.0461]
[1610303750188,4.00959,1290.5,1290.0,10.0]
[1610303750389,5.77749,1290.5,1290.4,10.0]
[1610303750687,5.77749,1290.5,1290.1,10.0]
[1610303750688,3.68264154,1290.4,1290.1,10.0]
[1610303751087,3.68264154,1290.4,1289.6,10.0]
[1610303751288,4.00959,1290.1,1289.7,4.00959]
[1610303751487,3.68264154,1290.4,1289.7,4.00959]
[1610303751688,3.68264154,1290.4,1289.7,14.00959]
[1610303752089,3.68264154,1290.4,1289.7,4.00959]
[1610303752288,3.68264154,1290.4,1289.8,10.0]
[1610303752688,3.68234696,1290.0,1289.8,10.0]
[1610303752890,3.68234696,1290.0,1289.9,10.0]
[1610303753089,3.68234696,1290.0,1289.8,10.0]
[1610303753290,3.68234696,1290.0,1289.9,4.00959]
[1610303753691,3.68234696,1290.0,1289.9,14.00959]
[1610303754092,3.68260766,1290.2,1289.9,10.0]
[1610303754494,3.68260766,1290.2,1290.0,10.0]
[1610303754891,3.68260766,1290.2,1289.6,10.0]
[1610303755095,5.85070766,1290.2,1289.6,10.0]
[1610303755293,5.85070766,1290.2,1289.7,10.0]
[1610303755695,5.85070766,1290.2,1289.1,4.00959]
[1610303756096,5.85070766,1290.2,1289.8,10.0]
[1610303756298,5.85070766,1290.2,1289.2,10.0]
[1610303756696,5.85070766,1290.2,1289.3,10.0]
[1610303756895,3.6633503,1290.1,1289.3,10.0]
[1610303757098,3.6633503,1290.1,1289.2,10.0]
[1610303757300,3.6633503,1290.1,1290.0,4.00959]
[1610303757697,3.6633503,1290.1,1289.3,2.444]
[1610303757896,3.6633503,1290.1,1290.0,10.0]
[1610303758198,3.6633503,1290.1,1289.4,10.0]
[1610303758599,3.6633503,1290.1,1289.5,10.0]
[1610303758798,3.6633503,1290.1,1289.4,10.0]
[1610303759199,3.6633503,1290.1,1289.5,10.0]
[1610303759599,3.6633503,1290.1,1289.4,10.0]
[1610303759900,3.6633503,1290.1,1289.5,10.0]
[1610303760299,3.6633503,1290.1,1289.4,10.0]
[1610303760699,3.6633503,1290.1,1289.6,10.0]
[1610303760900,3.66250395,1290.3,1289.4,10.0]
[1610303761198,3.66250395,1290.3,1289.7,10.0]
[1610303761400,4.00959,1290.0,1289.7,10.0]
[1610303761600,4.00959,1290.0,1289.4,10.0]
[1610303762004,4.00959,1290.0,1289.8,10.0]
[1610303762402,4.00959,1290.0,1289.4,10.0]
[1610303762602,3.6625749,1289.9,1289.3,6.45359]
[1610303763001,3.6625749,1289.9,1289.5,10.0]
[1610303763202,3.6625749,1289.9,1289.4,10.0]
[1610303763401,5.5732749,1289.9,1289.8,4.00959]
[1610303763601,5.5732749,1289.9,1289.0,1.8055]
[1610303763602,5.5732749,1289.9,1289.5,10.0]
[1610303764000,5.5732749,1289.9,1289.4,10.0]
[1610303764202,5.5732749,1289.9,1288.8,57.7594]
[1610303764401,5.5732749,1289.9,1289.5,10.0]
[1610303764604,5.5732749,1289.9,1289.5,7.2447]
[1610303764802,5.5732749,1289.9,1288.9,10.0]
[1610303765004,5.5732749,1289.9,1288.8,57.7594]
[1610303765201,3.76380353,1289.8,1289.0,10.0]
[1610303765402,4.00959,1289.1,1289.0,10.0]
[1610303765602,6.24549,1289.1,1288.8,57.7594]
[1610303766004,6.24549,1289.1,1289.0,10.0]
[1610303766403,6.24549,1289.1,1288.9,10.0]
[1610303766603,3.76923166,1289.0,1288.0,61.5219]
[1610303766805,3.76923166,1289.0,1288.1,10.0]
[1610303767206,3.76923166,1289.0,1288.2,10.0]
[1610303767407,4.00959,1288.3,1288.2,10.0]
[1610303768007,9.91037363,1288.3,1288.2,10.0]
[1610303768607,11.46877363,1288.3,1288.2,10.0]
[1610303769409,9.91037363,1288.3,1288.2,10.0]
[1610303769609,35.90078363,1288.3,1288.2,8.3609]
[1610303769809,5.90078363,1288.3,1288.2,2.3539]
[1610303770009,5.90078363,1288.3,1284.5,5.5279]
[1610303770211,5.90078363,1288.3,1285.2,30.0]
[1610303770411,5.90078363,1288.3,1288.1,10.0]
[1610303770909,5.90078363,1288.3,1286.8,1.5936]
[1610303770910,5.5412,1288.2,1286.8,1.5936]
[1610303771110,9.33262703,1288.2,1286.8,1.5936]
[1610303771310,9.33262703,1288.2,1286.9,10.0]
[1610303771510,4.00959,1287.0,1286.9,10.0]
[1610303771911,4.00959,1287.0,1286.8,1.5936]
[1610303772310,2.2433,1287.9,1286.8,1.5936]
[1610303772511,2.2433,1287.9,1286.9,10.0]
[1610303772911,2.1307,1288.3,1287.0,10.0]
[1610303773111,1.5558,1288.3,1287.0,10.0]
[1610303773311,5.6923,1288.5,1286.9,10.0]
[1610303773512,4.00959,1287.3,1287.1,14.00959]
[1610303773914,4.00959,1287.3,1287.1,4.00959]
[1610303774113,4.00959,1287.3,1286.8,1.5936]
[1610303774314,4.00959,1287.3,1287.2,10.0]
[1610303774714,4.00959,1287.3,1286.8,1.5936]
[1610303775117,4.00959,1287.3,1286.9,10.0]
[1610303775513,4.00959,1287.3,1286.8,1.5936]
[1610303775514,4.00959,1287.3,1287.0,10.0]
[1610303775914,2.5068,1288.0,1287.0,10.0]
[1610303776114,2.5068,1288.0,1286.9,10.0]
[1610303776516,2.5068,1288.0,1286.8,6.35999]
[1610303776517,2.5068,1288.0,1287.0,10.0]
[1610303776916,3.56501918,1287.9,1287.1,10.0]
[1610303777117,3.56501918,1287.9,1286.9,10.0]
[1610303777517,3.56501918,1287.9,1286.8,6.35999]
[1610303777518,3.56501918,1287.9,1287.8,4.00959]
[1610303777918,3.56501918,1287.9,1287.8,14.00959]
[1610303778117,61.1552,1288.4,1287.8,14.00959]
[1610303778516,61.1552,1288.4,1287.9,10.0]
[1610303778920,61.1552,1288.4,1288.0,10.0]
[1610303779519,61.1552,1288.4,1288.3,4.00959]
[1610303779719,61.1552,1288.4,1288.3,5.77629]
[1610303780019,61.1552,1288.4,1288.3,11.7667]
[1610303781424,61.1552,1288.4,1288.3,15.77629]
[1610303781625,49.3151,1290.1,1288.3,15.77629]
[1610303782025,49.3151,1290.1,1288.4,10.0]
[1610303782526,49.3151,1290.1,1288.5,10.0]
[1610303782927,49.3151,1290.1,1288.4,10.0]
[1610303783126,51.4472,1290.1,1288.3,5.77629]
[1610303783326,51.4472,1290.1,1288.5,10.0]
[1610303783526,4.00959,1289.1,1288.8,4.00959]
[1610303783925,4.00959,1289.1,1288.3,1.7667]
[1610303784125,4.00959,1289.1,1288.9,10.0]
[1610303784526,4.00959,1289.1,1288.4,10.0]
[1610303784727,4.00959,1289.1,1289.0,10.0]
[1610303785327,4.00959,1289.1,1288.1,65.4062]
[1610303785529,4.00959,1288.6,1288.5,4.00959]
[1610303785728,4.00959,1288.6,1288.5,10.0]
[1610303786328,7.99326835,1288.6,1288.5,10.0]
[1610303790130,4.00959,1288.6,1288.5,10.0]
[1610303790931,7.99356867,1288.6,1288.5,10.0]
[1610303794336,3.98397867,1288.6,1288.5,10.0]
[1610303795137,3.98365094,1288.7,1288.5,10.0]
[1610303795537,3.98365094,1288.7,1288.6,14.00959]
[1610303796439,3.98306461,1289.1,1288.6,14.00959]
[1610303796839,3.98306461,1289.1,1288.7,10.0]
[1610303797240,3.98306461,1289.1,1288.8,10.0]
[1610303797641,3.98306461,1289.1,1289.0,4.00959]
[1610303798040,3.98306461,1289.1,1289.0,14.00959]
[1610303799440,3.98258126,1289.7,1289.0,14.00959]
[1610303799642,4.00959,1289.2,1289.1,10.0]
[1610303800743,7.99231162,1289.2,1289.1,10.0]
[1610303801241,3.98272162,1289.2,1289.1,10.0]
[1610303802242,3.98244253,1289.4,1289.1,10.0]
[1610303802644,3.98244253,1289.4,1289.2,10.0]
[1610303803043,3.98244253,1289.4,1288.6,10.0]
[1610303803245,3.98244253,1289.4,1289.3,10.0]
[1610303803443,3.9824075,1289.7,1289.3,10.0]
[1610303803642,4.00959,1289.4,1289.1,4.00959]
[1610303803843,3.9824075,1289.7,1289.4,10.0]
[1610303804243,3.9824075,1289.7,1289.2,10.0]
[1610303804643,3.9824075,1289.7,1289.3,10.0]
[1610303804845,3.9824075,1289.7,1289.2,10.0]
[1610303805249,3.9824075,1289.7,1289.4,10.0]
[1610303805647,3.9824075,1289.7,1289.6,4.00959]
[1610303806247,3.9824075,1289.7,1289.6,14.00959]
[1610303808049,3.9824075,1289.7,1289.6,10.0]
[1610303808249,4.00959,1290.1,1289.6,10.0]
[1610303808250,3.98205322,1289.8,1289.6,10.0]
[1610303808652,3.98205322,1289.8,1289.7,10.0]
[1610303808855,3.98205322,1289.8,1289.7,12.0961]
[1610303809056,3.98205322,1289.8,1289.7,2.0961]
[1610303809457,3.98205322,1289.8,1289.7,12.0961]
[1610303809656,4.00959,1290.1,1289.7,16.10569]
[1610303810058,33.9813502,1291.2,1289.8,10.0]
[1610303810059,3.9813502,1291.2,1289.8,10.0]
[1610303810359,3.9813502,1291.2,1289.9,10.0]
[1610303810760,33.9813502,1291.2,1289.8,10.0]
[1610303810960,6.0031502,1291.2,1289.8,10.0]
[1610303811160,6.0031502,1291.2,1289.9,10.0]
[1610303811562,4.00959,1290.0,1289.8,10.0]
[1610303811962,4.00959,1290.0,1289.7,6.10569]
[1610303812362,3.98171116,1289.9,1289.8,10.0]
[1610303812763,3.98171116,1289.9,1289.7,6.10569]
[1610303813163,3.98171116,1289.9,1289.8,10.0]
[1610303816565,3.98135604,1290.5,1289.8,10.0]
[1610303816967,3.98135604,1290.5,1289.9,10.0]
[1610303817366,3.98135604,1290.5,1289.8,10.0]
[1610303817567,3.98135604,1290.5,1290.3,4.00959]
[1610303817768,4.00959,1290.7,1290.3,4.00959]
[1610303818170,4.00959,1290.7,1290.4,10.0]
[1610303818567,4.00959,1290.7,1290.1,10.0]
[1610303818766,3.98133984,1291.1,1290.1,10.0]
[1610303818966,3.98133984,1291.1,1290.2,10.0]
[1610303819367,3.98133984,1291.1,1290.1,10.0]
[1610303819566,4.00959,1290.5,1290.3,4.00959]
[1610303819766,4.00959,1290.5,1290.3,14.00959]
[1610303819966,4.00959,1290.5,1290.3,4.00959]
[1610303820168,4.00959,1290.5,1290.4,10.0]
[1610303820772,2.0218,1291.2,1290.4,10.0]
[1610303820968,2.0218,1291.2,1290.5,10.0]
[1610303821369,5.5194,1291.3,1290.5,10.0]
[1610303821568,4.00959,1290.6,1290.4,10.0]
[1610303821768,4.00959,1290.6,1290.3,4.00959]
[1610303821969,2.0018,1291.1,1290.3,4.00959]
[1610303822173,2.0018,1291.1,1290.5,10.0]
[1610303822376,2.0018,1291.1,1290.4,10.0]
[1610303822572,2.0018,1291.1,1290.0,1.5626]
[1610303822573,30.0,1291.0,1290.0,1.5626]
[1610303822768,30.0,1291.0,1290.6,10.0]
[1610303823168,30.0,1291.0,1290.7,10.0]
[1610303823370,30.0,1291.0,1289.5,43.8492]
[1610303823569,3.98196528,1290.9,1290.8,8.5303]
[1610303823769,35.53946528,1290.9,1290.8,8.5303]
[1610303823969,35.53946528,1290.9,1289.6,10.0]
[1610303824170,35.53946528,1290.9,1289.5,43.8492]
[1610303824371,35.53946528,1290.9,1290.8,10.0]
[1610303824769,35.53946528,1290.9,1289.7,10.0]
[1610303824971,3.98230694,1290.8,1289.5,43.8492]
[1610303825170,30.0,1290.7,1289.5,43.8492]
[1610303825372,30.0,1290.7,1289.6,10.0]
[1610303825574,4.00959,1289.8,1289.6,10.0]
[1610303825774,1.785,1289.9,1289.7,10.0]
[1610303826174,1.785,1289.9,1289.6,10.0]
[1610303826574,1.785,1289.9,1289.7,10.0]
[1610303826974,1.785,1289.9,1289.6,10.0]
[1610303827174,5.5289047,1290.6,1289.6,10.0]
[1610303827374,3.9822047,1290.6,1289.8,10.0]
[1610303827575,3.9822047,1290.6,1290.4,4.00959]
[1610303827776,2.1823,1290.8,1290.4,4.00959]
[1610303828178,2.1823,1290.8,1290.5,10.0]
[1610303828576,2.1823,1290.8,1290.6,10.0]
[1610303828979,2.1823,1290.8,1290.4,4.00959]
[1610303828980,3.98100029,1290.7,1290.5,10.0]
[1610303829383,3.98100029,1290.7,1290.4,4.00959]
[1610303829581,3.98100029,1290.7,1290.6,4.00959]
[1610303829783,3.98100029,1290.7,1290.6,14.00959]
[1610303832085,3.98022428,1291.0,1290.6,14.00959]
[1610303832286,3.98022428,1291.0,1290.7,10.0]
[1610303832687,4.00959,1291.8,1290.8,10.0]
[1610303833086,4.00959,1291.8,1290.7,10.0]
[1610303833287,4.00959,1291.8,1290.6,4.00959]
[1610303833488,3.97998251,1290.9,1290.8,10.0]
[1610303833686,3.97998251,1290.9,1290.8,14.00959]
[1610303833887,3.97998251,1290.9,1290.8,4.00959]
[1610303834287,3.97998251,1290.9,1290.8,14.00959]
[1610303834688,3.97982034,1291.7,1290.8,14.00959]
[1610303835087,3.97982034,1291.7,1290.9,10.0]
[1610303835587,3.97982034,1291.7,1291.6,4.00959]
[1610303836387,3.97982034,1291.7,1291.6,14.00959]
[1610303839489,3.97982034,1291.7,1291.6,10.0]
[1610303840088,7.98941034,1291.7,1291.6,10.0]
[1610303843692,3.97982034,1291.7,1291.6,10.0]
[1610303844092,3.97982034,1291.7,1291.6,14.00959]
[1610303845792,4.17137558,1292.1,1291.6,16.52139]
[1610303845991,4.17137558,1292.1,1292.0,4.00959]
[1610303846393,4.17137558,1292.1,1292.0,14.00959]
[1610303847594,4.17053507,1292.7,1292.0,14.00959]
[1610303847994,4.17053507,1292.7,1292.6,4.00959]
[1610303848394,4.17053507,1292.7,1292.6,6.48719]
[1610303848794,4.17053507,1292.7,1292.6,16.48719]
[1610303848996,4.16978788,1293.0,1292.6,16.48719]
[1610303849196,4.16978788,1293.0,1292.7,10.0]
[1610303849596,4.16978788,1293.0,1292.8,10.0]
[1610303849999,4.16978788,1293.0,1292.9,4.00959]
[1610303850198,4.16978788,1293.0,1292.9,14.00959]
[1610303850398,54.9155,1293.1,1292.9,16.18899]
[1610303850598,54.9155,1293.1,1293.0,10.0]
[1610303851097,2.414,1294.9,1293.0,10.0]
[1610303851499,2.414,1294.9,1292.9,6.18899]
[1610303851500,2.414,1294.9,1293.1,10.0]
[1610303851698,2.414,1294.9,1293.0,10.0]
[1610303852099,4.00959,1293.9,1293.8,4.00959]
[1610303852499,4.00959,1293.9,1293.0,10.0]
[1610303852901,4.00959,1293.9,1293.3,10.0]
[1610303853102,2.414,1294.9,1293.1,10.0]
[1610303853301,4.16966752,1293.9,1293.3,2.4057]
[1610303853902,4.16966752,1293.9,1293.4,10.0]
[1610303854102,4.00959,1293.6,1293.4,10.0]
[1610303854302,4.00959,1293.6,1293.5,10.0]
[1610303854502,4.16966752,1293.9,1293.5,10.0]
[1610303854703,4.16952605,1294.5,1293.4,10.0]
[1610303855103,4.16952605,1294.5,1293.5,10.0]
[1610303855503,4.16952605,1294.5,1293.4,10.0]
[1610303855703,4.16952605,1294.5,1293.5,10.0]
[1610303856105,4.00959,1294.3,1294.0,4.00959]
[1610303857407,4.16897401,1294.2,1294.1,10.0]
[1610303857810,4.16897401,1294.2,1293.3,2.4057]
[1610303858010,4.00959,1293.8,1293.7,4.00959]
[1610303858411,4.16897401,1294.2,1293.7,4.00959]
[1610303858810,2.3529,1294.6,1293.7,10.0]
[1610303859010,2.3529,1294.6,1293.8,10.0]
[1610303859409,2.3529,1294.6,1293.9,10.0]
[1610303859810,2.3529,1294.6,1293.4,10.0]
[1610303860012,4.00959,1293.5,1293.3,2.4057]
[1610303860213,4.00959,1293.5,1292.9,2.1794]
[1610303860412,4.00959,1293.5,1293.4,10.0]
[1610303860810,4.00959,1293.5,1293.4,1.5545]
[1610303861111,4.00959,1293.5,1293.4,11.5545]
[1610303861511,8.18014893,1293.5,1293.4,11.5545]
[1610303862113,8.18014893,1293.5,1293.4,15.56409]
[1610303862316,8.18014893,1293.5,1293.4,11.5545]
[1610303862712,4.17055893,1293.5,1293.4,11.5545]
[1610303864113,8.18014893,1293.5,1293.4,15.56409]
[1610303864314,4.17013551,1294.5,1293.4,15.56409]
[1610303864714,4.17013551,1294.5,1293.5,10.0]
[1610303865013,4.17013551,1294.5,1293.6,10.0]
[1610303865613,4.17013551,1294.5,1293.7,10.0]
[1610303865812,4.17013551,1294.5,1293.5,10.0]
[1610303866014,4.00959,1294.0,1293.7,4.00959]
[1610303866916,4.16964997,1293.9,1293.7,4.00959]
[1610303867114,4.16964997,1293.9,1293.8,10.0]
[1610303868215,8.17923997,1293.9,1293.8,10.0]
[1610303868616,4.00959,1293.9,1293.8,10.0]
[1610303869317,4.16936442,1294.5,1293.8,10.0]
[1610303869717,4.16936442,1294.5,1293.9,10.0]
[1610303870118,4.00959,1294.0,1293.5,10.0]
[1610303870519,4.00959,1294.0,1293.1,10.0]
[1610303870918,4.00959,1294.0,1293.2,10.0]
[1610303871418,4.00959,1294.0,1293.1,10.0]
[1610303871619,4.00959,1294.0,1293.3,10.0]
[1610303872019,4.00959,1294.0,1293.2,10.0]
[1610303872218,2.3726,1294.2,1293.8,4.00959]
[1610303872623,2.3726,1294.2,1293.9,10.0]
[1610303873021,4.16981454,1294.1,1293.2,10.0]
[1610303873220,4.16981454,1294.1,1294.0,10.0]
[1610303873624,4.16981454,1294.1,1293.3,10.0]
[1610303873820,4.16981454,1294.1,1293.0,1.8606]
[1610303874020,4.16981454,1294.1,1294.0,10.0]
[1610303874220,8.17940454,1294.1,1293.8,4.00959]
[1610303874421,8.17940454,1294.1,1293.4,10.0]